Cogmind - Beta 14 @@@ ROGUE MODE // 2024.09.08 @ 12:57:19 Player: Finestep Result: Destroyed by Z4-GLH(R) with Subdweller Laser Performance ------------- Evolutions (0) 0 Regions Visited (2) 400 Robots Destroyed (51) 255 Value Destroyed (1004) 1004 Prototype IDs (4) 80 Alien Tech Used (0) 0 Bonus (0) 0 TOTAL SCORE: 1739 Bonus ------- None Cogmind --------- Core Integrity 0/250 Matter 238/300 Energy 100/100 System Corruption 1% Temperature Cool (6) Movement Core (3450) Ox68 Location -10/Subcaves Parts ------- > --- POWER (1) -------- (None) > --- PROPULSION (2) --- (None) > --- UTILITY (2) ------ Humpback > --- WEAPON (2) ------- Battle Rifle Light Cannon > --- INVENTORY (35) --- Ion Engine Subdweller Power Source Spiked Treads Disposable Heat Sink Disposable Heat Sink Humpback Subdweller Optics Subdweller Optics Subdweller Optics Subdweller Beam Cannon Subdweller Beam Cannon Subdweller Machine Gun Subdweller Machine Gun Battle Cannon Battle Cannon Grenade Launcher Grenade Launcher Subdweller Shrapnel Launcher Mining Laser Multitool Peak State ------------ > --- POWER ------------ Makeshift Power Source > --- PROPULSION ------- Wheel Compact Wheel > --- UTILITY ---------- Humpback > --- WEAPON ----------- Battle Rifle Light Cannon > --- INVENTORY -------- Ion Engine Subdweller Power Source Spiked Treads Disposable Heat Sink Disposable Heat Sink Humpback Subdweller Optics Subdweller Beam Cannon Subdweller Beam Cannon Subdweller Machine Gun Battle Cannon Battle Cannon Grenade Launcher Grenade Launcher Subdweller Shrapnel Launcher Mining Laser Multitool [Rating: 14] Favorites ----------- Power Light Ion Engine Engine Light Ion Engine Propulsion Light Treads Treads Light Treads Wheel Wheel Utility Small Storage Unit Device Seismic Detector Storage Small Storage Unit Protection Light Armor Plating Weapon Medium Laser Energy Gun Medium Laser Energy Cannon Beam Cannon Ballistic Gun Battle Rifle Ballistic Cannon Light Cannon Launcher Grenade Launcher Special Weapon Mining Laser Build | -11 -10 -10 ------- Run | Yrd Mat Sub Slots Evolved . | . . . Power . | . . . Propulsion . | . . . Utility . | . . . Weapon . | . . . Parts Attached 33 | 7 12 14 Power 6 | 1 2 3 Engine 6 | 1 2 3 Core . | . . . Reactor . | . . . Propulsion 7 | 2 2 3 Treads 5 | 2 2 1 Leg . | . . . Wheel 2 | . . 2 Hover . | . . . Flight . | . . . Utility 6 | 2 2 2 Device 3 | 1 1 1 Storage 2 | 1 . 1 Processor . | . . . Hackware . | . . . Protection 1 | . 1 . Artifact . | . . . Weapon 14 | 2 6 6 Energy Gun 5 | 2 2 1 Energy Cannon 1 | . 1 . Ballistic Gun 3 | . 1 2 Ballistic Cannon 2 | . 1 1 Launcher 1 | . 1 . Special Weapon 2 | . . 2 Impact Weapon . | . . . Slashing Weapon . | . . . Piercing Weapon . | . . . Special Melee Weapon . | . . . Unidentified Prototypes . | . . . Parts Lost 6 | . 1 5 Power 2 | . 1 1 Propulsion 3 | . . 3 Utility . | . . . Weapon 1 | . . 1 Highest Loss Streak 3 | . 1 3 To Critical Strikes 1 | . 1 . Average Slot Usage (%) 95 | . 99 92 Engine 13 | . 13 13 Treads 20 | . 28 14 Wheel 7 | . . 12 Device 4 | . 5 3 Storage 14 | . 14 14 Protection 5 | . 8 4 Energy Gun 12 | . 15 10 Energy Cannon 9 | . 7 10 Ballistic Gun 2 | . 1 2 Ballistic Cannon 3 | . 3 3 Peak Build Rating 14 | 7 7 14 Average Rating 8 | 4 6 10 On Entrance 4 | . 7 7 Naked Turns . | . . . Heaviest Build 209 | 15 17 209 Greatest Support 40 | 40 40 40 Greatest Overweight (x) 8 | . . 8 Average Overweight (x) 1 | . . 2 Largest Inventory Capacity 35 | 8 8 35 Average Capacity 14 | 6 8 19 Most Carried 21 | 5 8 21 Average Carried 9 | 3 7 11 Final Capacity 35 | 8 8 35 Final Carried 21 | 5 8 21 Class Distribution -------------------- 66% | Mutant 22% | Hauler-Mutant 11% | Scavenger-Mutant Dominant Class ---------------- Mutant | -10/Materials Hauler-Mutant | -10/Subcaves Resources | -11 -10 -10 ----------- Run | Yrd Mat Sub Matter Collected 853 | 270 389 194 Remotely . | . . . Salvage Created 1635 | 45 900 690 Parts 99 | 4 51 44 Haulers Intercepted 2 | . 2 . Recyclers Shooed 2 | . 2 . Parts Field Recycled . | . . . Retrieved Matter . | . . . Parts Self-Destructed 1 | . . 1 Prevented . | . . . Kills | -11 -10 -10 ------- Run | Yrd Mat Sub Combat Hostiles Destroyed 31 | . 17 14 Guns 12 | . 7 5 Cannons 13 | . 6 7 AOE 4 | . 4 . Classes Destroyed 12 | 2 6 4 Worker 9 | 1 8 . Builder 2 | . 2 . Tunneler 2 | 1 1 . Hauler 2 | . 2 . Recycler 2 | . 2 . Watcher 3 | . 3 . Swarmer 10 | . 9 1 Grunt 8 | . 8 . Sentry 1 | . . 1 Artisan 1 | . . 1 Cobbler 1 | . . 1 Subdweller 12 | . . 12 Best Kill Streak 7 | 1 7 2 Combat Bots Only 6 | . 6 2 Max Kills in Single Turn 3 | 1 3 1 Gunslinging . | . . . Exploded 2 | . 2 . Melee . | . . . Uniques/NPCs Destroyed . | . . . Combat | -11 -10 -10 -------- Run | Yrd Mat Sub Hostile Shots Fired 138 | . 59 79 Missed 36 | . 14 22 Damage Taken 1772 | . 466 1306 Core 267 | . 32 235 Absorbed by Shields . | . . . Core Remaining (%) 100 | 100 . . Volleys Fired 145 | 3 73 69 Largest 2 | 2 2 2 Hottest 110 | 100 110 110 Shots Fired 274 | 6 143 125 Gun 155 | 6 90 59 Cannon 108 | . 50 58 Launcher 3 | . 3 . Special 8 | . . 8 Kinetic 55 | . 23 32 Thermal 216 | 6 117 93 Explosive 3 | . 3 . Electromagnetic . | . . . Robot Hit Streak 19 | 2 19 13 Robot Miss Streak 6 | 1 6 3 Penetration Max . | . . . Secondary Targets 1 | . 1 . Max Gunslinging Chain 1 | . 1 . Shots Hit Robots 176 | 3 89 84 Core Hits 78 | 2 49 27 Critical Kills 2 | . . 2 Critical Parts Destroyed . | . . . Critical Strikes 7 | 1 3 3 Burn 4 | 1 3 . Meltdown 2 | . . 2 Blast 1 | . . 1 Melee Attacks . | . . . Impact . | . . . Slashing . | . . . Piercing . | . . . Sneak Attacks . | . . . Combat Hostiles . | . . . Follow-up Attacks . | . . . Damage Inflicted 2764 | 37 1614 1113 Guns 1280 | 37 815 428 Cannons 1145 | . 460 685 Explosions 339 | . 339 . Melee . | . . . Ramming . | . . . Kinetic 390 | . 123 267 Thermal 2035 | 37 1152 846 Explosive 339 | . 339 . Electromagnetic . | . . . Impact . | . . . Slashing . | . . . Piercing . | . . . Highest Corruption 1 | . 1 1 Average Corruption 1 | . 1 1 Corruption Purged . | . . . Corruption Blocked . | . . . Effects 14 | . 4 10 Message Errors 3 | . 2 1 Matter Fused 6 | . 2 4 Heat Flow Errors 1 | . . 1 Energy Discharges 1 | . . 1 Misfires 1 | . . 1 Alerts 1 | . . 1 Weapon Failures 1 | . . 1 Overload Shots . | . . . Overflow Damage 23 | . 17 6 Projectiles 23 | . 17 6 Explosions . | . . . Melee . | . . . Knockbacks 2 | . 1 1 Impact . | . . . Kinetic 2 | . 1 1 Secondary . | . . . Self-Inflicted Damage 30 | . 30 . Shots 1 | . 1 . Rammed . | . . . Targets Rammed . | . . . Kicked . | . . . Crushed . | . . . Highest Temperature 333 | 39 333 90 Average Temperature 78 | 21 90 8 Received Heat Transfer 309 | . 138 171 Effects 2 | . 2 . Energy Bleed 2 | . 2 . Siege Activations . | . . . Robots Corrupted . | . . . Combat Hostiles . | . . . Parts Fried . | . . . Impact Corruptions . | . . . Robots Melted 2 | . . 2 Combat Hostiles 2 | . . 2 Parts Melted 10 | . 8 2 Heat Transferred 5550 | 185 3330 2035 Parts Sabotaged . | . . . Parts Stolen . | . . . Parts Stripped . | . . . Power Chain Reactions . | . . . Alert | -11 -10 -10 ------- Run | Yrd Mat Sub Peak Influence 366 | 10 366 . Initial 6 | . 6 . Average 199 | 1 213 . Maximum Alert Level 1 | . 1 . Low Security (%) 41 | 100 37 . Level 1 58 | . 62 . Level 2 . | . . . Level 3 . | . . . Level 4 . | . . . Level 5 . | . . . High Security . | . . . Max Security . | . . . Squads Dispatched 3 | . 3 . Investigation 2 | . 2 . Extermination . | . . . Reinforcement 1 | . 1 . Assault . | . . . Garrison . | . . . Intercept . | . . . Searches Triggered . | . . . Construction Impeded . | . . . Haulers Reinforced . | . . . Active Scanning Responses . | . . . Cargo Convoy Interrupts . | . . . Stealth | -11 -10 -10 --------- Run | Yrd Mat Sub Distress Signals . | . . . Communications Jammed . | . . . Distress Signals . | . . . Times Spotted 40 | . 24 16 Peak Tracking Total 5 | . 5 2 Tactical Retreats 2 | . 2 . Traps | -11 -10 -10 ------- Run | Yrd Mat Sub Traps Triggered 1 | . 1 . Indirectly . | . . . Trap Hack Attempts . | . . . Triggered . | . . . Disarmed . | . . . Reprogrammed . | . . . Reused . | . . . Traps Extracted . | . . . Installed . | . . . Triggered . | . . . Machines | -11 -10 -10 ---------- Run | Yrd Mat Sub Machines Disabled 1 | . 1 . Max in Single Turn 1 | . 1 . Machines Repaired . | . . . Machines Dismantled . | . . . Machines Sabotaged . | . . . Overloaded Fab Kills . | . . . Hacking | -11 -10 -10 --------- Run | Yrd Mat Sub Machines Accessed 8 | . 8 . Terminals 7 | . 7 . Fabricators . | . . . Repair Stations . | . . . Recycling Units 1 | . 1 . Scanalyzers . | . . . Garrison Access . | . . . Total Hacks 28 | . 28 . Successful 13 | . 13 . Failed 15 | . 15 . Catastrophic 4 | . 4 . Database Lockouts . | . . . Manual 15 | . 15 . Terminals 26 | . 26 . Fabricators . | . . . Repair Stations . | . . . Recycling Units 2 | . 2 . Scanalyzers . | . . . Garrison Access . | . . . Terminal Hacks 9 | . 9 . Robot Schematic 1 | . 1 . Robot Analysis 1 | . 1 . Prototype ID Bank 2 | . 2 . Locate Traps 2 | . 2 . Maintenance Status 1 | . 1 . Hauler Manifests 1 | . 1 . Zone Layout 1 | . 1 . Fabricator Hacks . | . . . Repair Station Hacks . | . . . Recycling Unit Hacks . | . . . Scanalyzer . | . . . Garrison Access Hacks . | . . . Unauthorized Hacks 4 | . 4 . Terminals 3 | . 3 . Track 1 | . 1 . Botnet 2 | . 2 . Fabricators . | . . . Repair Stations . | . . . Recycling Units 1 | . 1 . Tunnel 1 | . 1 . Scanalyzers . | . . . Garrison Access . | . . . Data Cores Recovered . | . . . Used . | . . . Hacking Detections 8 | . 8 . Full Trace Events 1 | . 1 . Feedback Events . | . . . Feedback Blocked . | . . . Robot Schematics Acquired 1 | . 1 . Robots Built . | . . . Authchips . | . . . Time . | . . . Total Robot Build Rating . | . . . Part Schematics Acquired . | . . . Parts Built . | . . . Authchips . | . . . Time . | . . . Total Part Build Rating . | . . . Parts Repaired . | . . . Time . | . . . Parts Recycled . | . . . Recycled Matter . | . . . Retrieved Matter . | . . . Retrieved Components . | . . . Parts Scanalyzed . | . . . Part Schematics Acquired . | . . . Parts Damaged . | . . . Bothacking | -11 -10 -10 ------------ Run | Yrd Mat Sub Used RIF Installer . | . . . Robots Hacked . | . . . Non-combat . | . . . Combat . | . . . Robot Hacks Applied . | . . . Relay Couplers Released . | . . . Fabnet Peak Effective % . | . . . Robots Rewired . | . . . Allies Hacked . | . . . Hacks Repelled . | . . . Allies | -11 -10 -10 -------- Run | Yrd Mat Sub Total Allies . | . . . Largest Group . | . . . Highest-Rated Group . | . . . Highest-Rated Ally . | . . . Total Orders . | . . . Ally Attacks . | . . . Total Damage . | . . . Kills . | . . . Allies Corrupted . | . . . Allies Melted . | . . . Intel | -11 -10 -10 ------- Run | Yrd Mat Sub Robot Analysis Total 1 | . 1 . Derelict Logs Recovered 1 | . . 1 Drone Launches . | . . . Drone Recoveries . | . . . Exploration | -11 -10 -10 ------------- Run | Yrd Mat Sub Turns Passed 3200 | 104 1416 1680 Spaces Moved 1531 | 56 697 778 Core 9 | 9 . . Treads 1195 | 47 697 451 Legs . | . . . Wheels 327 | . . 327 Hover . | . . . Flight . | . . . Fastest Speed 50 | 50 160 90 Average Speed 166 | 142 160 174 Slowest Speed 210 | 160 160 210 Overloaded Moves . | . . . Propulsion Burnouts . | . . . Robots Hopped . | . . . Cave-ins Triggered . | . . . Exploration Rate (%) 48 | 3 95 46 Regions Visited 2 Branch Regions 1 Pre-discovered Areas 3 | . 1 2 Known Exits Taken . | . . . Unknown Exits Taken 2 | 1 1 . Scrap Searched 2 | . . 2 Spaces Dug 9 | . 9 . Terrain Destroyed 19 | . 19 . Melee . | . . . Projectile . | . . . AOE 19 | . 19 . Terrain Rammed . | . . . Walls Destroyed . | . . . Machines Disabled . | . . . Actions | -11 -10 -10 --------- Run | Yrd Mat Sub Total 1892 | 71 856 965 Wait 135 | 1 60 74 Move 1529 | 55 696 778 Hop . | . . . Pick Up 31 | 5 6 20 Fast Attach 17 | 7 5 5 Attach 4 | . . 4 Detach . | . . . Swap 12 | . 7 5 Drop 19 | . 9 10 Fire 145 | 3 73 69 Melee . | . . . Ram . | . . . Kick . | . . . Crush . | . . . Escape Stasis . | . . . Rewire . | . . . Trap . | . . . Miscellaneous . | . . . Route ------- -11/Scrapyard -10/Materials (discovered 5 exits: [*Mat x3] / [*Min] / [*Sub]) -10/Subcaves (discovered 2 exits: [*Mat x2]) History --------- Turn | Location | Event 12 | -11/Scrapyard | Discovered new exit (range 15) 105 | -11/Scrapyard | Entered Materials 230 | -10/Materials | Discovered new exit (range 16) 315 | -10/Materials | Build established: Mutant 499 | -10/Materials | Discovered new exit (range 14) 868 | -10/Materials | Discovered new exit (range 16) 1075 | -10/Materials | Discovered new exit (range 11) 1505 | -10/Materials | Discovered new exit (range 10) 1521 | -10/Materials | Entered Subcaves 1660 | -10/Subcaves | Ambushed by angry Subdweller bent on revenge 1910 | -10/Subcaves | Discovered new exit (range 11) 2261 | -10/Subcaves | Discovered new exit (range 10) 2309 | -10/Subcaves | Build established: Scavenger-Mutant 2324 | -10/Subcaves | Learned location of Zion (-7) 2324 | -10/Subcaves | Met a Zionite searching for "candidates" 2359 | -10/Subcaves | Core integrity fell below 50% 2743 | -10/Subcaves | Disturbed a concealed Subdweller 2786 | -10/Subcaves | Build established: Hauler-Mutant 2834 | -10/Subcaves | Core integrity fell below 20% 2912 | -10/Subcaves | Disturbed a concealed Subdweller 3201 | -10/Subcaves | Destroyed by Z4-GLH(R) with Subdweller Laser Last Messages --------------- 02933_ Found Sub. Monowheel. 02933_ Found 30 Matter. 02934_ Acquired 30 matter. 02935_ Acquired 4 matter. 02937_ Searching scrap... 02937_ Found Sub. Beam Cannon. 02937_ Found Sub. Power Source. 02937_ Found 44 Matter. 02941_ System corrupted: Matter fused (-8). 02941_ Acquired Sub. Optics. 02944_ Acquired Sub. Beam Cannon. 02945_ Acquired 8 matter. 02956_ Acquired Sub. Optics. 02981_ Acquired Sub. Machine Gun. 03084_ System corrupted: Energy discharge (-52). 03180_ Mak. Power Source destroyed. 03181_ Wheel destroyed. 03187_ Com. Wheel destroyed. 03190_ VL-T7X(R) destroyed. 03199_ Z4-GLH(R) knocked back. Map ----- +----------------------------------------------------+ | ????????????????????????????????????????? | | ????????????????????????????????????????? | | ????????????????????????????????????????? | | ????????????????????????????????????????? | | ????????????????????????????????????????? | | ????????????????????????????????????????? | | ????????????????????????????????????????? | | ????????????????????????????????????????? | | ????????????????????????????????????????? | | ????????????????? ?????????????????????? | | ????????????????? ?????????????????????? | | ????????????????? ?????????????????????? | | ????????????????? ?????????????????????? | | ????????????????? ?????????????????????? | | ????????????????? ?????????????????????? | | ????????????????? ?????????????????????? | | ???????????#????# ?????????????????????? | | ???????????# ??## #?????????????????????? | | ???????????? ??# #?????????????????????? | | ???????????## ## #?????????????????????? | | ???????????# #< #???? ????????????????? | | ???????????# #??? ????????????????? | | ???????????# % !#??? ????????????????? | | ?????????????#" %*#??? #????????????????? | | ???????????????#RR#??? ##???????????????? | | ???????????????#@[#??? #???????????????? | | ???????????????##%#?## #???????????????? | | ????????????????# ### #???????????????? | | ????????????????## #???????????????? | | ????????????????## #???????????????? | | ???????????????## #???????????????? | | ???????????????# #???????????????? | | ???????????????# ##???????????????? | | ???????????????## #????????????????? | | ????????????????## ##???????????????? | | ?????????????????## ###?????????????? | | ??????????????????## #?????????????? | | ??????????????????## #?????????????? | | ??????????????????# ####?????????????? | | ??????????????????# #????????????????? | | ??????????????????# ######???????????? | | ??????????????????### ##??????????? | | ????????????????????# #??????????? | | ????????????????????## ######??????? | | ?????????????????????## ##### ##?????? | | ?????????????????????## ### #?????# | | ???????????????####### #????## | | ???????????????# ###????# | | ???????????????# # ####???# | | ???????????????##"" ###"" ## ##### | +----------------------------------------------------+ Best States ------------- Heat Dissipation 35 Coolant Potential 50 Energy Generation 15 Energy Capacity 250 Matter Stores 300 Matter Capacity 300 Sight Range 16 Terrain Scan Density 10 Armor Coverage 150 Evasion (%) 42 Recoil Reduction 2 Item Schematics ----------------- None Robot Schematics ------------------ M-13 Machinist | -10/Materials | Hacked Fabricated ------------ Nothing Alien Tech Used ----------------- None Achievements -------------- None Challenges ------------ None Game ------ Seed SuperchargedDeuteriumDrive Manual? 0 Play Time 00:19:47 Cumulative 694.7 hours Start 2024.09.08 @ 12:38:23 End 2024.09.08 @ 12:57:19 Sessions 1 Manual Loads 0 Difficulty Rogue Special Mode None Game No. 437 Rogue 437 Adventurer 0 Explorer 0 Win Type - Total 9 Types 6/0/1/1/1/0/0/0/0 Lore% 66 Gallery% 84 Achievement% 75 Wizard Run 0 Options --------- Layout 0 ASCII 0 Keyboard 0 Movement Mouse Keybinds 1 Fullscreen 2 Font 24/Smallcaps Map View 76x50 Zoom Use 0% Tactical HUD 1 Map Filters NONE Filters NONE Steam 1 RUN: d47850e9-428e-4e6a-b351-97305ba1b8b1